[Event "44th Chess Olympiad Women 2022"]
[Site "Chennai"]
[Date "2022.07.31"]
[Round "3.55"]
[White "Saraci, Nita"]
[Black "Diaz Cesar, Wilsaida Pieranlly"]
[Result "0-1"]
[WhiteElo "1555"]
[BlackElo "1834"]
[Annotator "NA RC"]
[PlyCount "96"]
[EventDate "2022.??.??"]
[TimeControl "60"]

1. d4 {[%emt 0:00:03]} Nf6 {[%emt 0:00:13]} 2. Nf3 {[%emt 0:00:09]} g6 {
[%emt 0:00:19]} 3. Bf4 {[%emt 0:00:38]} Bg7 {[%emt 0:02:21]} 4. Nbd2 {[%emt 0:
00:00]} d6 {[%emt 0:05:07]} 5. e4 {[%emt 0:02:59]} Nbd7 {[%emt 0:04:04]} 6. Bd3
{[%emt 0:02:39]} O-O {[%emt 0:01:44]} 7. Qe2 {[%emt 0:03:22]} a6 {[%emt 0:00:
00]} 8. O-O {[%emt 0:00:58]} Nh5 {[%emt 0:01:21]} 9. Bg3 {[%emt 0:09:00]} Nxg3
{[%emt 0:01:09]} 10. fxg3 {[%emt 0:00:12]} e5 {[%emt 0:01:15]} 11. d5 {[%emt 0:
00:00]} Nc5 {[%emt 0:09:38]} 12. Rf2 {[%emt 0:03:09]} Qe7 {[%emt 0:07:29]} 13.
Raf1 {[%emt 0:01:26]} Bd7 {[%emt 0:05:00]} 14. b3 {[%emt 0:02:31]} Rae8 {
[%emt 0:03:13]} 15. Qe3 {[%emt 0:13:30]} h6 {[%emt 0:00:48]} 16. h3 {[%emt 0:
00:00]} Bc8 {[%emt 0:01:41]} 17. g4 {[%emt 0:01:28]} Bd7 {[%emt 0:08:17]} 18.
Nh2 {[%emt 0:09:37]} Nxd3 {[%emt 0:00:45]} 19. Qxd3 {[%emt 0:00:25]} c6 {
[%emt 0:00:23]} 20. c4 {[%emt 0:07:57]} Rd8 {[%emt 0:06:03]} 21. Qe3 {[%emt 0:
00:00]} cxd5 {[%emt 0:01:58]} 22. cxd5 {[%emt 0:01:26]} Bb5 {[%emt 0:00:34]}
23. Nc4 {[%emt 0:03:37]} Bxc4 {[%emt 0:04:26]} 24. bxc4 {[%emt 0:00:02]} Rc8 {
[%emt 0:00:09]} 25. Rc1 {[%emt 0:00:25]} Rc5 {[%emt 0:00:15]} 26. Nf3 {[%emt 0:
00:00]} Rfc8 {[%emt 0:00:19]} 27. Nd2 {[%emt 0:00:17]} b5 {[%emt 0:00:54]} 28.
Rcf1 {[%emt 0:02:34]} f6 {[%emt 0:01:00]} 29. cxb5 {[%emt 0:00:42]} axb5 {
[%emt 0:02:01]} 30. Nb3 {[%emt 0:01:24]} Rc3 {[%emt 0:01:51]} 31. Qb6 {[%emt 0:
00:00]} Qd7 {[%emt 0:00:54]} 32. Qa6 {[%emt 0:02:51]} R3c4 {[%emt 0:01:21]} 33.
Qb6 {[%emt 0:00:25]} Rxe4 {[%emt 0:01:07]} 34. Rc1 {[%emt 0:02:05]} Rxc1+ {
[%emt 0:02:15]} 35. Nxc1 {[%emt 0:00:08]} Rc4 {[%emt 0:00:32]} 36. Nb3 {
[%emt 0:02:10]} f5 {[%emt 0:01:13]} 37. gxf5 {[%emt 0:00:11]} gxf5 {[%emt 0:00:
00]} 38. Rd2 {[%emt 0:07:02]} Kh7 {[%emt 0:05:46]} 39. Na5 {[%emt 0:02:18]}
Rc1+ {[%emt 0:02:13]} 40. Kf2 {[%emt 0:01:12]} e4 {[%emt 0:02:26]} 41. Ke2 {
[%emt 0:32:06]} f4 {[%emt 0:32:13]} 42. Nc6 {[%emt 0:04:53]} f3+ {[%emt 0:00:
00]} 43. gxf3 {[%emt 0:01:41]} exf3+ {[%emt 0:00:27]} 44. Kxf3 {[%emt 0:00:00]}
Qxh3+ {[%emt 0:00:00]} 45. Kf4 {[%emt 0:00:00]} h5 {[%emt 0:00:00]} 46. Qa7 {
[%emt 0:00:00]} Qg4+ {[%emt 0:00:00]} 47. Ke3 {[%emt 0:00:00]} Rc3+ {[%emt 0:
00:00]} 48. Kf2 {[%emt 0:00:00]} Qf3+ {[%emt 0:00:00]} 0-1

[Event "44th Chess Olympiad Women 2022"]
[Site "Chennai"]
[Date "2022.07.31"]
[Round "3.55"]
[White "Saraci, Ndriqona"]
[Black "Rosario Almanzar, Raydily"]
[Result "0-1"]
[WhiteElo "1425"]
[BlackElo "1882"]
[Annotator "NA"]
[PlyCount "72"]
[EventDate "2022.??.??"]
[TimeControl "60"]

1. e4 {[%emt 0:00:03]} c5 {[%emt 0:00:40]} 2. Nf3 {[%emt 0:00:26]} e6 {[%emt 0:
00:00]} 3. d4 {[%emt 0:00:20]} cxd4 {[%emt 0:00:05]} 4. Nxd4 {[%emt 0:00:06]}
a6 {[%emt 0:00:03]} 5. Nc3 {[%emt 0:00:42]} b5 {[%emt 0:00:29]} 6. a3 {[%emt 0:
00:00]} Bb7 {[%emt 0:00:26]} 7. Bd3 {[%emt 0:04:35]} Qc7 {[%emt 0:03:34]} 8.
O-O {[%emt 0:06:20]} Nf6 {[%emt 0:01:06]} 9. f3 {[%emt 0:11:34]} Bc5 {[%emt 0:
00:00]} 10. Be3 {[%emt 0:05:10]} Qb6 {[%emt 0:01:05]} 11. Nce2 {[%emt 0:06:41]}
e5 {[%emt 0:01:00]} 12. c3 {[%emt 0:07:30]} exd4 {[%emt 0:00:45]} 13. cxd4 {
[%emt 0:00:11]} Be7 {[%emt 0:00:37]} 14. Qb3 {[%emt 0:03:36]} O-O {[%emt 0:00:
00]} 15. Rac1 {[%emt 0:01:12]} d6 {[%emt 0:08:40]} 16. Rc3 {[%emt 0:01:58]}
Nbd7 {[%emt 0:08:54]} 17. Rfc1 {[%emt 0:01:15]} Rfc8 {[%emt 0:00:49]} 18. Qc2 {
[%emt 0:00:43]} Rxc3 {[%emt 0:00:58]} 19. Nxc3 {[%emt 0:00:38]} Ne5 {[%emt 0:
00:00]} 20. Kf2 {[%emt 0:05:52]} Nxd3+ {[%emt 0:01:54]} 21. Qxd3 {[%emt 0:00:
00]} Qd8 {[%emt 0:03:42]} 22. Ne2 {[%emt 0:04:41]} Rc8 {[%emt 0:00:54]} 23. Rd1
{[%emt 0:01:18]} Nd7 {[%emt 0:02:38]} 24. Kf1 {[%emt 0:00:49]} Nb6 {[%emt 0:00:
00]} 25. b3 {[%emt 0:01:20]} f5 {[%emt 0:08:54]} 26. Nf4 {[%emt 0:10:17]} fxe4
{[%emt 0:02:09]} 27. fxe4 {[%emt 0:00:34]} Bg5 {[%emt 0:01:08]} 28. g3 {
[%emt 0:01:27]} Qe7 {[%emt 0:01:28]} 29. h4 {[%emt 0:01:20]} Bxe4 {[%emt 0:00:
00]} 30. Qd2 {[%emt 0:03:14]} Rc2 {[%emt 0:03:19]} 31. Qe1 {[%emt 0:01:19]}
Bxf4 {[%emt 0:01:38]} 32. Bxf4 {[%emt 0:00:55]} Qe6 {[%emt 0:02:21]} 33. Rd2 {
[%emt 0:04:21]} Qh3+ {[%emt 0:03:14]} 34. Ke2 {[%emt 0:01:30]} Qg4+ {[%emt 0:
00:00]} 35. Kf1 {[%emt 0:01:38]} Qf3+ {[%emt 0:00:08]} 36. Qf2 {[%emt 0:01:26]}
Rc1+ {[%emt 0:00:08]} 0-1

[Event "44th Chess Olympiad Women 2022"]
[Site "Chennai"]
[Date "2022.07.31"]
[Round "3.56"]
[White "Herrera, Marjorie"]
[Black "Estur, Grace Co"]
[Result "1-0"]
[WhiteElo "1760"]
[BlackElo "1472"]
[Annotator "NA RC"]
[PlyCount "77"]
[EventDate "2022.??.??"]
[TimeControl "60"]

1. e4 {[%emt 0:00:04]} e5 {[%emt 0:01:00]} 2. Nf3 {[%emt 0:00:13]} Nc6 {
[%emt 0:00:56]} 3. Bc4 {[%emt 0:00:09]} h6 {[%emt 0:00:40]} 4. c3 {[%emt 0:00:
00]} Nf6 {[%emt 0:01:47]} 5. d3 {[%emt 0:00:42]} d6 {[%emt 0:02:46]} 6. Bb3 {
[%emt 0:01:54]} Bg4 {[%emt 0:03:15]} 7. Nbd2 {[%emt 0:00:25]} d5 {[%emt 0:00:
00]} 8. O-O {[%emt 0:05:02]} dxe4 {[%emt 0:04:34]} 9. dxe4 {[%emt 0:00:26]} Bd6
{[%emt 0:02:27]} 10. Qe2 {[%emt 0:05:31]} O-O {[%emt 0:03:46]} 11. Nc4 {
[%emt 0:03:32]} Ne7 {[%emt 0:06:50]} 12. Rd1 {[%emt 0:07:55]} Qb8 {[%emt 0:00:
00]} 13. h3 {[%emt 0:05:33]} Bh5 {[%emt 0:04:35]} 14. Bc2 {[%emt 0:00:45]} b5 {
[%emt 0:03:56]} 15. Ne3 {[%emt 0:04:20]} Qb7 {[%emt 0:03:18]} 16. Nf1 {[%emt 0:
00:00]} Rfd8 {[%emt 0:05:46]} 17. Ng3 {[%emt 0:01:31]} Bg6 {[%emt 0:00:47]} 18.
Nh4 {[%emt 0:02:37]} Bh7 {[%emt 0:03:11]} 19. Qf3 {[%emt 0:02:37]} c6 {[%emt 0:
00:00]} 20. Bxh6 {[%emt 0:03:51]} Ne8 {[%emt 0:05:12]} 21. Bg5 {[%emt 0:04:12]}
Rd7 {[%emt 0:03:47]} 22. Bb3 {[%emt 0:04:49]} Ng6 {[%emt 0:01:59]} 23. Nxg6 {
[%emt 0:03:46]} Bxg6 {[%emt 0:00:55]} 24. Qg4 {[%emt 0:01:13]} Kf8 {[%emt 0:00:
00]} 25. h4 {[%emt 0:04:42]} a5 {[%emt 0:01:57]} 26. h5 {[%emt 0:04:36]} Bh7 {
[%emt 0:00:15]} 27. h6 {[%emt 0:01:38]} a4 {[%emt 0:01:24]} 28. hxg7+ {[%emt 0:
00:00]} Nxg7 {[%emt 0:00:28]} 29. Bh6 {[%emt 0:03:04]} f5 {[%emt 0:04:57]} 30.
Nxf5 {[%emt 0:01:58]} Bxf5 {[%emt 0:01:10]} 31. Bxg7+ {[%emt 0:00:52]} Ke8 {
[%emt 0:01:34]} 32. Qxf5 {[%emt 0:01:11]} axb3 {[%emt 0:02:48]} 33. Qe6+ {
[%emt 0:04:33]} Re7 {[%emt 0:01:21]} 34. Qg6+ {[%emt 0:02:29]} Kd7 {[%emt 0:00:
00]} 35. Qxd6+ {[%emt 0:00:32]} Ke8 {[%emt 0:00:57]} 36. Qg6+ {[%emt 0:00:53]}
Rf7 {[%emt 0:00:32]} 37. Bf6 {[%emt 0:00:36]} Qb6 {[%emt 0:02:06]} 38. Qg8+ {
[%emt 0:00:26]} Rf8 {[%emt 0:01:29]} 39. Qe6# {[%emt 0:00:07]} 1-0

[Event "44th Chess Olympiad Women 2022"]
[Site "Chennai"]
[Date "2022.07.31"]
[Round "3.56"]
[White "Nacario, Ruth"]
[Black "Garcia, Angie"]
[Result "0-1"]
[WhiteElo "1552"]
[BlackElo "1894"]
[Annotator "NA RC"]
[PlyCount "74"]
[EventDate "2022.??.??"]
[TimeControl "60"]

1. d4 {[%emt 0:00:01]} Nf6 {[%emt 0:00:57]} 2. c4 {[%emt 0:00:39]} g6 {[%emt 0:
00:00]} 3. Nc3 {[%emt 0:01:32]} Bg7 {[%emt 0:00:13]} 4. Bg5 {[%emt 0:00:46]}
O-O {[%emt 0:00:33]} 5. Qd2 {[%emt 0:00:50]} d6 {[%emt 0:00:29]} 6. Bh6 {
[%emt 0:02:10]} c5 {[%emt 0:02:46]} 7. d5 {[%emt 0:01:30]} a6 {[%emt 0:00:32]}
8. a4 {[%emt 0:02:38]} Qa5 {[%emt 0:01:04]} 9. Bxg7 {[%emt 0:03:20]} Kxg7 {
[%emt 0:00:09]} 10. e3 {[%emt 0:02:33]} Bd7 {[%emt 0:00:27]} 11. b3 {[%emt 0:
00:00]} b5 {[%emt 0:01:08]} 12. Bd3 {[%emt 0:08:26]} bxa4 {[%emt 0:03:01]} 13.
bxa4 {[%emt 0:01:51]} Bc8 {[%emt 0:01:22]} 14. Nf3 {[%emt 0:01:40]} Bg4 {
[%emt 0:01:26]} 15. Be2 {[%emt 0:01:49]} Nbd7 {[%emt 0:00:42]} 16. O-O {
[%emt 0:05:36]} Rab8 {[%emt 0:00:47]} 17. Qc2 {[%emt 0:06:18]} Rb7 {[%emt 0:00:
00]} 18. h3 {[%emt 0:04:43]} Bxf3 {[%emt 0:00:38]} 19. Bxf3 {[%emt 0:01:14]}
Rfb8 {[%emt 0:00:16]} 20. Rab1 {[%emt 0:06:06]} Rxb1 {[%emt 0:01:39]} 21. Rxb1
{[%emt 0:03:27]} Rxb1+ {[%emt 0:00:15]} 22. Nxb1 {[%emt 0:01:18]} Nb6 {[%emt 0:
00:00]} 23. Bd1 {[%emt 0:01:57]} Qb4 {[%emt 0:00:40]} 24. Nd2 {[%emt 0:00:55]}
Nxa4 {[%emt 0:00:36]} 25. Nf3 {[%emt 0:03:12]} Nc3 {[%emt 0:01:13]} 26. Be2 {
[%emt 0:02:14]} Nxe2+ {[%emt 0:00:21]} 27. Qxe2 {[%emt 0:00:29]} a5 {[%emt 0:
00:00]} 28. e4 {[%emt 0:06:59]} a4 {[%emt 0:00:12]} 29. e5 {[%emt 0:01:46]}
dxe5 {[%emt 0:02:42]} 30. Nxe5 {[%emt 0:03:19]} a3 {[%emt 0:01:08]} 31. Nd3 {
[%emt 0:03:59]} Qb1+ {[%emt 0:00:45]} 32. Kh2 {[%emt 0:02:37]} a2 {[%emt 0:00:
00]} 33. Nxc5 {[%emt 0:03:27]} a1=Q {[%emt 0:00:18]} 34. Qxe7 {[%emt 0:01:57]}
Qg1+ {[%emt 0:00:47]} 35. Kg3 {[%emt 0:00:12]} Nh5+ {[%emt 0:00:44]} 36. Kh4 {
[%emt 0:07:46]} Qxf2+ {[%emt 0:00:16]} 37. Kg4 {[%emt 0:01:26]} Qf4# {[%emt 0:
00:00]} 0-1

[Event "44th Chess Olympiad Women 2022"]
[Site "Chennai"]
[Date "2022.07.31"]
[Round "3.56"]
[White "Ortez, Andrea"]
[Black "Ollet, Myra"]
[Result "1-0"]
[WhiteElo "1908"]
[BlackElo "1480"]
[Annotator "NA"]
[PlyCount "99"]
[EventDate "2022.??.??"]
[TimeControl "60"]

1. e4 {[%emt 0:00:03]} d6 {[%emt 0:00:12]} 2. d4 {[%emt 0:00:32]} c6 {[%emt 0:
00:00]} 3. Nf3 {[%emt 0:00:27]} e6 {[%emt 0:00:56]} 4. c4 {[%emt 0:00:52]} Be7
{[%emt 0:00:57]} 5. Nc3 {[%emt 0:00:41]} Nd7 {[%emt 0:00:39]} 6. Bf4 {[%emt 0:
00:00]} h6 {[%emt 0:01:27]} 7. h4 {[%emt 0:00:51]} Nb6 {[%emt 0:01:18]} 8. Bd3
{[%emt 0:02:10]} a6 {[%emt 0:03:56]} 9. Qe2 {[%emt 0:02:43]} Bd7 {[%emt 0:00:
00]} 10. Rb1 {[%emt 0:11:42]} c5 {[%emt 0:05:10]} 11. dxc5 {[%emt 0:04:17]}
dxc5 {[%emt 0:00:17]} 12. e5 {[%emt 0:00:52]} Bc6 {[%emt 0:02:45]} 13. Rd1 {
[%emt 0:02:55]} Qc7 {[%emt 0:00:21]} 14. Be4 {[%emt 0:01:36]} Rd8 {[%emt 0:00:
00]} 15. O-O {[%emt 0:03:17]} Rxd1 {[%emt 0:10:25]} 16. Rxd1 {[%emt 0:00:08]}
Nd7 {[%emt 0:00:26]} 17. h5 {[%emt 0:04:13]} Bd8 {[%emt 0:07:04]} 18. Rd6 {
[%emt 0:11:53]} Be7 {[%emt 0:02:19]} 19. Bxc6 {[%emt 0:05:44]} Bxd6 {[%emt 0:
00:00]} 20. Bxd7+ {[%emt 0:00:08]} Qxd7 {[%emt 0:00:59]} 21. exd6 {[%emt 0:00:
00]} Nf6 {[%emt 0:00:45]} 22. Ne5 {[%emt 0:03:47]} Qd8 {[%emt 0:02:51]} 23. Qf3
{[%emt 0:01:26]} O-O {[%emt 0:01:09]} 24. Qxb7 {[%emt 0:03:39]} Qxd6 {[%emt 0:
00:00]} 25. Ng6 {[%emt 0:01:10]} e5 {[%emt 0:02:27]} 26. Bxe5 {[%emt 0:04:03]}
Qe6 {[%emt 0:00:47]} 27. Ne7+ {[%emt 0:03:59]} Kh8 {[%emt 0:01:08]} 28. Bxf6 {
[%emt 0:00:44]} gxf6 {[%emt 0:00:49]} 29. g3 {[%emt 0:05:45]} Re8 {[%emt 0:00:
00]} 30. Ned5 {[%emt 0:00:52]} Qe1+ {[%emt 0:01:22]} 31. Kg2 {[%emt 0:00:02]}
Kg7 {[%emt 0:01:35]} 32. Qc6 {[%emt 0:01:12]} Re6 {[%emt 0:00:37]} 33. Qxc5 {
[%emt 0:00:09]} Re5 {[%emt 0:01:52]} 34. Qd6 {[%emt 0:02:02]} Re6 {[%emt 0:00:
00]} 35. Qf4 {[%emt 0:00:18]} Qe5 {[%emt 0:01:31]} 36. Qf3 {[%emt 0:02:43]} Qd4
{[%emt 0:00:47]} 37. Ne3 {[%emt 0:00:23]} Kf8 {[%emt 0:05:48]} 38. Qa8+ {
[%emt 0:01:11]} Re8 {[%emt 0:00:42]} 39. Qxa6 {[%emt 0:00:33]} Rxe3 {[%emt 0:
00:00]} 40. fxe3 {[%emt 0:00:27]} Qxe3 {[%emt 0:00:10]} 41. Qxf6 {[%emt 0:00:
00]} Qd2+ {[%emt 0:30:27]} 42. Qf2 {[%emt 0:00:27]} Qg5 {[%emt 0:01:34]} 43.
Ne4 {[%emt 0:00:21]} Qxh5 {[%emt 0:00:55]} 44. Qc5+ {[%emt 0:00:25]} Qxc5 {
[%emt 0:00:25]} 45. Nxc5 {[%emt 0:00:03]} Ke7 {[%emt 0:00:12]} 46. a4 {[%emt 0:
00:00]} Kd6 {[%emt 0:00:08]} 47. b4 {[%emt 0:00:04]} f5 {[%emt 0:00:17]} 48. a5
{[%emt 0:00:17]} h5 {[%emt 0:00:11]} 49. a6 {[%emt 0:00:27]} Kc6 {[%emt 0:00:
00]} 50. Na4 {[%emt 0:00:22]} 1-0

[Event "44th Chess Olympiad Women 2022"]
[Site "Chennai"]
[Date "2022.07.31"]
[Round "3.57"]
[White "Aishath Alya Mohamed Shareef"]
[Black "Silvera, Pilar"]
[Result "0-1"]
[WhiteElo "1110"]
[BlackElo "1436"]
[Annotator "NA"]
[PlyCount "80"]
[EventDate "2022.??.??"]
[TimeControl "60"]

1. d4 {[%emt 0:00:07]} f5 {[%emt 0:00:09]} 2. Bf4 {[%emt 0:00:14]} Nf6 {
[%emt 0:00:11]} 3. Nf3 {[%emt 0:00:36]} e6 {[%emt 0:00:10]} 4. e3 {[%emt 0:00:
00]} d5 {[%emt 0:00:14]} 5. Bd3 {[%emt 0:00:52]} Bd6 {[%emt 0:00:32]} 6. Nbd2 {
[%emt 0:01:36]} O-O {[%emt 0:05:14]} 7. Ne5 {[%emt 0:03:43]} c6 {[%emt 0:05:41]
} 8. c3 {[%emt 0:02:47]} Ne4 {[%emt 0:09:37]} 9. Bxe4 {[%emt 0:11:47]} fxe4 {
[%emt 0:00:22]} 10. Qg4 {[%emt 0:07:42]} Qf6 {[%emt 0:21:27]} 11. Rf1 {[%emt 0:
00:00]} Be7 {[%emt 0:19:31]} 12. Bg3 {[%emt 0:15:32]} Qf5 {[%emt 0:04:06]} 13.
Qe2 {[%emt 0:08:10]} h6 {[%emt 0:07:37]} 14. O-O-O {[%emt 0:07:36]} Nd7 {
[%emt 0:01:33]} 15. f3 {[%emt 0:03:59]} Nxe5 {[%emt 0:01:57]} 16. Bxe5 {
[%emt 0:01:31]} exf3 {[%emt 0:00:52]} 17. Nxf3 {[%emt 0:03:47]} Qh5 {[%emt 0:
00:00]} 18. Qd3 {[%emt 0:01:43]} Qf5 {[%emt 0:01:00]} 19. Qd2 {[%emt 0:05:27]}
Bd7 {[%emt 0:00:55]} 20. Bg3 {[%emt 0:05:18]} Qe4 {[%emt 0:02:49]} 21. Ne5 {
[%emt 0:02:14]} Rxf1 {[%emt 0:02:02]} 22. Rxf1 {[%emt 0:00:13]} Be8 {[%emt 0:
00:00]} 23. Qf2 {[%emt 0:04:45]} Bg5 {[%emt 0:01:42]} 24. Bf4 {[%emt 0:03:22]}
Bf6 {[%emt 0:00:05]} 25. Kd2 {[%emt 0:00:39]} Bxe5 {[%emt 0:00:49]} 26. Bxe5 {
[%emt 0:00:16]} Bg6 {[%emt 0:00:07]} 27. Qe2 {[%emt 0:00:39]} Qc2+ {[%emt 0:00:
00]} 28. Ke1 {[%emt 0:00:36]} Qb1+ {[%emt 0:02:17]} 29. Qd1 {[%emt 0:01:36]}
Qxb2 {[%emt 0:00:13]} 30. Qd2 {[%emt 0:00:42]} Bc2 {[%emt 0:02:16]} 31. Rf2 {
[%emt 0:01:27]} Qb1+ {[%emt 0:02:39]} 32. Ke2 {[%emt 0:00:45]} Be4 {[%emt 0:00:
00]} 33. Rf1 {[%emt 0:00:42]} Qb5+ {[%emt 0:01:53]} 34. Ke1 {[%emt 0:00:42]}
Bd3 {[%emt 0:01:24]} 35. Rf4 {[%emt 0:01:00]} Rf8 {[%emt 0:02:12]} 36. Rxf8+ {
[%emt 0:00:11]} Kxf8 {[%emt 0:00:01]} 37. Qf2+ {[%emt 0:00:17]} Kg8 {[%emt 0:
00:00]} 38. Bd6 {[%emt 0:00:42]} Qb1+ {[%emt 0:00:36]} 39. Kd2 {[%emt 0:00:38]}
Qc2+ {[%emt 0:00:07]} 40. Ke1 {[%emt 0:00:31]} Qc1# {[%emt 0:00:04]} 0-1

[Event "44th Chess Olympiad Women 2022"]
[Site "Chennai"]
[Date "2022.07.31"]
[Round "3.57"]
[White "Malan, Lucia"]
[Black "Abdul Rasheed, Mariyam Laisa"]
[Result "1-0"]
[WhiteElo "1741"]
[BlackElo "1145"]
[Annotator "NA RC"]
[PlyCount "43"]
[EventDate "2022.??.??"]
[TimeControl "60"]

1. e4 {[%emt 0:00:05]} c5 {[%emt 0:00:14]} 2. Nf3 {[%emt 0:00:13]} d6 {[%emt 0:
00:00]} 3. d4 {[%emt 0:00:24]} cxd4 {[%emt 0:00:07]} 4. Nxd4 {[%emt 0:00:06]}
Nf6 {[%emt 0:00:09]} 5. Nc3 {[%emt 0:00:42]} g6 {[%emt 0:00:19]} 6. Be3 {
[%emt 0:01:10]} Bg7 {[%emt 0:00:18]} 7. f3 {[%emt 0:03:29]} Nc6 {[%emt 0:00:39]
} 8. Qd2 {[%emt 0:00:57]} Bd7 {[%emt 0:00:24]} 9. O-O-O {[%emt 0:00:17]} O-O {
[%emt 0:05:17]} 10. g4 {[%emt 0:02:23]} Rc8 {[%emt 0:01:43]} 11. h4 {[%emt 0:
00:00]} a6 {[%emt 0:06:46]} 12. h5 {[%emt 0:11:26]} Ne5 {[%emt 0:03:40]} 13.
Bh6 {[%emt 0:05:29]} Nc4 {[%emt 0:06:11]} 14. Bxc4 {[%emt 0:04:54]} Rxc4 {
[%emt 0:00:08]} 15. Bxg7 {[%emt 0:04:10]} Kxg7 {[%emt 0:00:07]} 16. hxg6 {
[%emt 0:00:20]} fxg6 {[%emt 0:02:14]} 17. Qh6+ {[%emt 0:04:15]} Kf7 {[%emt 0:
00:00]} 18. g5 {[%emt 0:02:52]} Ne8 {[%emt 0:06:24]} 19. Qxh7+ {[%emt 0:00:50]}
Ng7 {[%emt 0:00:10]} 20. Rh6 {[%emt 0:01:47]} e5 {[%emt 0:08:13]} 21. Qxg6+ {
[%emt 0:02:18]} Kg8 {[%emt 0:00:25]} 22. Rdh1 {[%emt 0:00:30]} 1-0

[Event "44th Chess Olympiad Women 2022"]
[Site "Chennai"]
[Date "2022.07.31"]
[Round "3.57"]
[White "Nuha, Rilwan"]
[Black "Roepke, Sofia"]
[Result "0-1"]
[WhiteElo "1068"]
[BlackElo "1869"]
[Annotator "NA RC"]
[PlyCount "98"]
[EventDate "2022.??.??"]
[TimeControl "60"]

1. e4 {[%emt 0:00:07]} e5 {[%emt 0:00:07]} 2. Nf3 {[%emt 0:00:27]} Nf6 {
[%emt 0:00:04]} 3. Nc3 {[%emt 0:00:16]} Bb4 {[%emt 0:00:04]} 4. d3 {[%emt 0:00:
00]} O-O {[%emt 0:00:10]} 5. Bg5 {[%emt 0:03:34]} d6 {[%emt 0:03:08]} 6. Be2 {
[%emt 0:00:46]} Re8 {[%emt 0:05:21]} 7. a3 {[%emt 0:05:03]} Bxc3+ {[%emt 0:00:
00]} 8. bxc3 {[%emt 0:00:10]} Nbd7 {[%emt 0:00:52]} 9. Qd2 {[%emt 0:05:05]} Nf8
{[%emt 0:03:43]} 10. Rb1 {[%emt 0:04:30]} h6 {[%emt 0:08:31]} 11. Bxf6 {
[%emt 0:06:01]} Qxf6 {[%emt 0:00:13]} 12. O-O {[%emt 0:00:19]} Ng6 {[%emt 0:00:
00]} 13. Rfe1 {[%emt 0:04:07]} Nf4 {[%emt 0:05:31]} 14. Bf1 {[%emt 0:01:12]} b6
{[%emt 0:03:37]} 15. d4 {[%emt 0:02:35]} Bg4 {[%emt 0:00:58]} 16. Re3 {[%emt 0:
00:00]} Nh3+ {[%emt 0:12:04]} 17. Kh1 {[%emt 0:03:32]} Qf4 {[%emt 0:07:06]} 18.
Rd1 {[%emt 0:10:29]} exd4 {[%emt 0:08:50]} 19. cxd4 {[%emt 0:02:46]} Rxe4 {
[%emt 0:09:48]} 20. Rxe4 {[%emt 0:00:57]} Qxe4 {[%emt 0:00:19]} 21. Re1 {
[%emt 0:00:52]} Qf4 {[%emt 0:01:38]} 22. Qxf4 {[%emt 0:02:56]} Nxf4 {[%emt 0:
00:00]} 23. Re4 {[%emt 0:01:48]} Bxf3 {[%emt 0:00:07]} 24. Rxf4 {[%emt 0:01:24]
} Bc6 {[%emt 0:00:36]} 25. Bc4 {[%emt 0:02:38]} d5 {[%emt 0:00:52]} 26. Bd3 {
[%emt 0:02:30]} Re8 {[%emt 0:00:27]} 27. h3 {[%emt 0:03:51]} Kf8 {[%emt 0:00:
00]} 28. Kh2 {[%emt 0:02:24]} Re1 {[%emt 0:01:38]} 29. Rf3 {[%emt 0:01:17]} Ke7
{[%emt 0:03:35]} 30. Re3+ {[%emt 0:01:33]} Rxe3 {[%emt 0:00:05]} 31. fxe3 {
[%emt 0:00:04]} Kd6 {[%emt 0:01:26]} 32. Kg3 {[%emt 0:00:27]} Ba4 {[%emt 0:00:
00]} 33. Kf4 {[%emt 0:01:31]} c5 {[%emt 0:00:59]} 34. c3 {[%emt 0:01:01]} Bd7 {
[%emt 0:07:44]} 35. h4 {[%emt 0:02:20]} Be6 {[%emt 0:03:22]} 36. Bf5 {[%emt 0:
00:00]} Bxf5 {[%emt 0:01:21]} 37. Kxf5 {[%emt 0:00:03]} c4 {[%emt 0:01:08]} 38.
g4 {[%emt 0:04:28]} b5 {[%emt 0:00:09]} 39. g5 {[%emt 0:00:48]} hxg5 {[%emt 0:
00:00]} 40. hxg5 {[%emt 0:00:17]} a5 {[%emt 0:00:09]} 41. e4 {[%emt 0:35:36]}
b4 {[%emt 0:31:37]} 42. e5+ {[%emt 0:00:29]} Kd7 {[%emt 0:01:14]} 43. axb4 {
[%emt 0:03:47]} axb4 {[%emt 0:00:30]} 44. g6 {[%emt 0:00:08]} fxg6+ {[%emt 0:
00:00]} 45. Kxg6 {[%emt 0:00:08]} Ke6 {[%emt 0:00:28]} 46. cxb4 {[%emt 0:00:25]
} c3 {[%emt 0:00:06]} 47. Kxg7 {[%emt 0:00:18]} c2 {[%emt 0:00:06]} 48. b5 {
[%emt 0:00:10]} c1=Q {[%emt 0:00:07]} 49. b6 {[%emt 0:00:15]} Qg5+ {[%emt 0:00:
00]} 0-1

[Event "44th Chess Olympiad Women 2022"]
[Site "Chennai"]
[Date "2022.07.31"]
[Round "3.57"]
[White "Quevedo, Andreina"]
[Black "Nihaya, Ahmed"]
[Result "1-0"]
[WhiteElo "1841"]
[BlackElo "1233"]
[Annotator "NA RC"]
[PlyCount "69"]
[EventDate "2022.??.??"]
[TimeControl "60"]

1. e4 {[%emt 0:00:07]} e5 {[%emt 0:00:13]} 2. Nf3 {[%emt 0:00:07]} Nc6 {
[%emt 0:00:05]} 3. d4 {[%emt 0:00:08]} exd4 {[%emt 0:00:06]} 4. Nxd4 {[%emt 0:
00:00]} Bc5 {[%emt 0:00:07]} 5. Nb3 {[%emt 0:00:25]} Bb6 {[%emt 0:00:26]} 6.
Nc3 {[%emt 0:00:52]} a6 {[%emt 0:02:42]} 7. Qe2 {[%emt 0:07:11]} d6 {[%emt 0:
00:00]} 8. Be3 {[%emt 0:02:42]} Bxe3 {[%emt 0:00:14]} 9. Qxe3 {[%emt 0:00:05]}
Nf6 {[%emt 0:00:10]} 10. f3 {[%emt 0:02:01]} Be6 {[%emt 0:00:28]} 11. O-O-O {
[%emt 0:09:06]} O-O {[%emt 0:05:59]} 12. g4 {[%emt 0:03:32]} b5 {[%emt 0:01:35]
} 13. h4 {[%emt 0:03:21]} Re8 {[%emt 0:02:57]} 14. h5 {[%emt 0:09:36]} b4 {
[%emt 0:05:40]} 15. Ne2 {[%emt 0:03:40]} Bxb3 {[%emt 0:05:50]} 16. axb3 {
[%emt 0:01:47]} a5 {[%emt 0:01:58]} 17. g5 {[%emt 0:05:27]} Nd7 {[%emt 0:00:25]
} 18. g6 {[%emt 0:02:11]} fxg6 {[%emt 0:01:14]} 19. hxg6 {[%emt 0:00:15]} hxg6
{[%emt 0:07:09]} 20. Nd4 {[%emt 0:19:26]} Nxd4 {[%emt 0:01:18]} 21. Qxd4 {
[%emt 0:00:01]} Qf6 {[%emt 0:00:53]} 22. Qc4+ {[%emt 0:08:18]} Kf8 {[%emt 0:00:
00]} 23. Qxc7 {[%emt 0:02:00]} Ke7 {[%emt 0:01:48]} 24. Bh3 {[%emt 0:02:49]}
Red8 {[%emt 0:00:08]} 25. e5 {[%emt 0:01:17]} Qf4+ {[%emt 0:03:48]} 26. Kb1 {
[%emt 0:00:33]} Ke8 {[%emt 0:06:24]} 27. Bxd7+ {[%emt 0:06:42]} Rxd7 {[%emt 0:
00:00]} 28. Qc6 {[%emt 0:02:47]} Ke7 {[%emt 0:01:24]} 29. Qxa8 {[%emt 0:00:20]}
dxe5 {[%emt 0:06:30]} 30. Rxd7+ {[%emt 0:00:04]} Kxd7 {[%emt 0:00:03]} 31. Rd1+
{[%emt 0:00:22]} Ke6 {[%emt 0:00:23]} 32. Qc8+ {[%emt 0:01:50]} Kf6 {[%emt 0:
00:00]} 33. Qd8+ {[%emt 0:00:53]} Kf5 {[%emt 0:01:23]} 34. Qf8+ {[%emt 0:00:38]
} Kg5 {[%emt 0:00:21]} 35. Rg1+ {[%emt 0:00:11]} 1-0